{"text_format":"1","workbook":"xlsx","n_sheets":9,"sheets":["A - Základní údaje","B - Návrh projektu","C - Osobní náklady","D - Věcné náklady","E - Investiční náklady","F - Celkové náklady","H - Hodnocení","Values","Translations"],"not_rendered":{"charts":0,"images":1,"macros":1,"external_links":0,"defined_names":13,"comments":0,"pivot_tables":0},"unopened":[],"bounds":{"document_bytes":16777216,"sheet_cells":100000,"rows_first":2000,"rows_last":500,"rows_between":2000,"halvings":0,"cell_chars":16384,"cell_head_chars":4096},"cells_cut":0,"cells_raw":0,"read":"whole","date_system":"1900"}

{"sheet":"A - Základní údaje","index":0,"n_rows":164,"n_cols":7,"rows_kept":164,"cut":false,"hidden":false,"merged":[[15,3,15,6],[17,3,17,6],[22,3,22,6],[24,3,24,6],[9,3,9,6],[11,3,11,6],[13,3,13,6],[19,3,19,6],[46,3,46,6],[26,3,26,6],[28,3,28,6],[38,2,38,6],[41,2,41,6],[44,3,44,6],[30,3,30,6],[32,3,32,6],[34,3,34,6],[56,2,56,3],[57,2,57,3],[58,2,58,3],[59,2,59,3],[60,2,60,3],[51,2,51,3],[52,2,52,3],[53,2,53,3],[54,2,54,3],[55,2,55,3],[66,2,66,3],[67,2,67,3],[68,2,68,3],[69,2,69,3],[70,2,70,3],[61,2,61,3],[62,2,62,3],[63,2,63,3],[64,2,64,3],[65,2,65,3],[76,2,76,3],[77,2,77,3],[78,2,78,3],[79,2,79,3],[80,2,80,3],[71,2,71,3],[72,2,72,3],[73,2,73,3],[74,2,74,3],[75,2,75,3],[86,2,86,3],[87,2,87,3],[88,2,88,3],[89,2,89,3],[90,2,90,3],[81,2,81,3],[82,2,82,3],[83,2,83,3],[84,2,84,3],[85,2,85,3],[96,2,96,3],[97,2,97,3],[98,2,98,3],[99,2,99,3],[100,2,100,3],[91,2,91,3],[92,2,92,3],[93,2,93,3],[94,2,94,3],[95,2,95,3],[106,2,106,3],[107,2,107,3],[108,2,108,3],[109,2,109,3],[110,2,110,3],[101,2,101,3],[102,2,102,3],[103,2,103,3],[104,2,104,3],[105,2,105,3],[116,2,116,3],[117,2,117,3],[118,2,118,3],[119,2,119,3],[120,2,120,3],[111,2,111,3],[112,2,112,3],[113,2,113,3],[114,2,114,3],[115,2,115,3],[126,2,126,3],[127,2,127,3],[128,2,128,3],[129,2,129,3],[130,2,130,3],[121,2,121,3],[122,2,122,3],[123,2,123,3],[124,2,124,3],[125,2,125,3],[136,2,136,3],[137,2,137,3],[138,2,138,3],[139,2,139,3],[140,2,140,3],[131,2,131,3],[132,2,132,3],[133,2,133,3],[134,2,134,3],[135,2,135,3],[151,2,151,3],[146,2,146,3],[147,2,147,3],[148,2,148,3],[149,2,149,3],[150,2,150,3],[141,2,141,3],[142,2,142,3],[143,2,143,3],[144,2,144,3],[145,2,145,3]]}
["v18np",null,null,null,null,null,"Část A - Základní údaje"]
[]
[]
[null,"Přihláška projektu SGS na rok 2019"]
[]
[]
[null,"Jazyk přihlášky:"]
[]
[]
[null,"Název projektu česky:"]
[]
[null,"Název projektu anglicky:"]
[]
[null,"Stav projektu:"]
[]
[null,"Datum zahájení:"]
[]
[null,"Datum konce:"]
[]
[null,"Číslo projektu (u pokračujících):"]
[]
[]
[null,"Řešitel projektu:"]
[]
[null,null,"Fakulta:"]
[]
[null,null,"Katedra:"]
[]
[null,null,"Vztah k TUL:"]
[]
[null,null,"Datum narození:"]
[]
[null,null,"Dosažené vysokoškolské vzdělání:"]
[]
[null,null,"Datum vystavení diplomu:"]
[]
[]
[null,"Anotace projektu česky (maximálně 300 znaků):"]
[]
[]
[null,"Anotace projektu anglicky  (maximálně 300 znaků):"]
[]
[]
[]
[null,"Příkazce projektu:"]
[]
[null,"Správce projektu:"]
[]
[]
[null,"Členové řešitelského týmu:"]
[null,null,"Jméno a příjmení:",null,"Fakulta:","Katedra:","Role:"]
[null,{"$f":"IF(AND(NOT(EXACT(C52,\"\")),EXACT(G52,\"\")),1,0)","v":0}]
[null,{"$f":"IF(AND(NOT(EXACT(C53,\"\")),EXACT(G53,\"\")),1,0)","v":0}]
[null,0]
[null,0]
[null,0]
[null,0]
[null,0]
[null,0]
[null,0]
[null,0]
[null,0]
[null,0]
[null,0]
[null,0]
[null,0]
[null,0]
[null,0]
[null,0]
[null,0]
[null,0]
[null,0]
[null,0]
[null,0]
[null,0]
[null,0]
[null,0]
[null,0]
[null,0]
[null,0]
[null,0]
[null,0]
[null,0]
[null,0]
[null,0]
[null,0]
[null,0]
[null,0]
[null,0]
[null,0]
[null,0]
[null,0]
[null,0]
[null,0]
[null,0]
[null,0]
[null,0]
[null,0]
[null,0]
[null,0]
[null,0]
[null,0]
[null,0]
[null,0]
[null,0]
[null,0]
[null,0]
[null,0]
[null,0]
[null,0]
[null,0]
[null,0]
[null,0]
[null,0]
[null,0]
[null,0]
[null,{"$f":"IF(AND(NOT(EXACT(C117,\"\")),EXACT(G117,\"\")),1,0)","v":0}]
[null,0]
[null,0]
[null,0]
[null,0]
[null,0]
[null,0]
[null,0]
[null,0]
[null,0]
[null,0]
[null,0]
[null,0]
[null,0]
[null,0]
[null,0]
[null,0]
[null,0]
[null,0]
[null,0]
[null,0]
[null,0]
[null,0]
[null,0]
[null,0]
[null,0]
[null,0]
[null,0]
[null,0]
[null,0]
[null,0]
[null,0]
[null,0]
[null,0]
[null,0]
[null,0]
[]
[]
[]
[]
[null,"Počet členů řešitelského týmu:",null,null,null,null,{"$f":"SUM(G158:G159)","v":0}]
[null,null,"Studenti:",null,null,null,{"$f":"COUNTIF(G52:G152,Values!$A$48)+IF(EXACT(D29,Values!A32),1,0)","v":0}]
[null,null,"Ostatní členové:",null,null,null,{"$f":"((COUNTA(G52:G152)+COUNTA(D29))-G158)","v":0}]
[]
[]
[]
[null,null,{"$f":"IF(SUM(B52:B152)=0,\"\",Values!A93)","v":""}]
[null,null,{"$f":"IF(G158>=G159,\"\",Values!A94)","v":""}]

{"sheet":"B - Návrh projektu","index":1,"n_rows":30,"n_cols":7,"rows_kept":30,"cut":false,"hidden":false,"merged":[[7,2,7,6],[10,2,10,6],[25,2,25,6],[30,2,30,5],[36,2,36,5],[13,2,13,6],[16,2,16,6],[22,2,22,6],[19,2,19,6],[31,2,31,5],[32,2,32,5],[33,2,33,5],[34,2,34,5],[35,2,35,5],[44,2,44,5],[37,2,37,5],[38,2,38,5],[39,2,39,5],[40,2,40,5],[41,2,41,5],[42,2,42,5]]}
[null,null,null,null,null,null,"Část B - Návrh projektu"]
[]
[]
[null,"Přihláška projektu SGS na rok 2019"]
[]
[]
[null,"Motivace pro řešení projektu:"]
[]
[]
[null,"Současný stav poznání nebo úroveň technologie:"]
[]
[]
[null,"Cíle a výsledky projektu:"]
[]
[]
[null,"Použité metody a metodologie:"]
[]
[]
[null,"Časový plán (harmonogram) řešení projektu:"]
[]
[]
[null,"Společenský a ekonomický dopad projektu nebo přínos k poznání:"]
[]
[]
[null,"Popis pracovních aktivit členů řešitelského týmu:"]
[]
[]
[]
[null,"Plánované výstupy projektu vstupující do RIV:"]
[null,null,"Druh výsledku:",null,null,null,"Počet:"]

{"sheet":"C - Osobní náklady","index":2,"n_rows":129,"n_cols":9,"rows_kept":129,"cut":false,"hidden":false,"merged":[[121,3,121,6],[123,3,123,6]]}
[null,null,null,null,null,null,null,"Část C - Osobní náklady"]
[]
[]
[null,"Přihláška projektu SGS na rok 2019"]
[]
[]
[null,"Osobní náklady (Kč):"]
[null,null,"Člen týmu:","Role:","Mzda:","Odměna:","DPP/DPČ:","Stipendium:","Základ OON:"]
[null,null,{"$f":"IF(EXACT('A - Základní údaje'!D23,\"\"),\"\",'A - Základní údaje'!D23)","v":""},{"$f":"IF(EXACT('A - Základní údaje'!D29,\"\"),\"\",IF(EXACT('A - Základní údaje'!D29,Values!$A$32),Values!$A$48,Values!$A$49))","v":""},null,null,null,null,{"$f":"IF(G9+F9+E9>10000,G9,0)","v":0}]
[null,null,{"$f":"IF(EXACT('A - Základní údaje'!C52,\"\"),\"\",'A - Základní údaje'!C52)","v":""},{"$f":"IF(EXACT('A - Základní údaje'!G52,\"\"),\"\",'A - Základní údaje'!G52)","v":""},null,null,null,null,{"$f":"IF(G10+F10+E10>10000,G10,0)","v":0}]
[null,null,{"$f":"IF(EXACT('A - Základní údaje'!C53,\"\"),\"\",'A - Základní údaje'!C53)","v":""},{"$f":"IF(EXACT('A - Základní údaje'!G53,\"\"),\"\",'A - Základní údaje'!G53)","v":""},null,null,null,null,{"$f":"IF(G11+F11+E11>10000,G11,0)","v":0}]
[null,null,{"$f":"IF(EXACT('A - Základní údaje'!C54,\"\"),\"\",'A - Základní údaje'!C54)","v":""},{"$f":"IF(EXACT('A - Základní údaje'!G54,\"\"),\"\",'A - Základní údaje'!G54)","v":""},null,null,null,null,0]
[null,null,{"$f":"IF(EXACT('A - Základní údaje'!C55,\"\"),\"\",'A - Základní údaje'!C55)","v":""},{"$f":"IF(EXACT('A - Základní údaje'!G55,\"\"),\"\",'A - Základní údaje'!G55)","v":""},null,null,null,null,0]
[null,null,{"$f":"IF(EXACT('A - Základní údaje'!C56,\"\"),\"\",'A - Základní údaje'!C56)","v":""},{"$f":"IF(EXACT('A - Základní údaje'!G56,\"\"),\"\",'A - Základní údaje'!G56)","v":""},null,null,null,null,0]
[null,null,{"$f":"IF(EXACT('A - Základní údaje'!C57,\"\"),\"\",'A - Základní údaje'!C57)","v":""},{"$f":"IF(EXACT('A - Základní údaje'!G57,\"\"),\"\",'A - Základní údaje'!G57)","v":""},null,null,null,null,0]
[null,null,{"$f":"IF(EXACT('A - Základní údaje'!C58,\"\"),\"\",'A - Základní údaje'!C58)","v":""},{"$f":"IF(EXACT('A - Základní údaje'!G58,\"\"),\"\",'A - Základní údaje'!G58)","v":""},null,null,null,null,0]
[null,null,{"$f":"IF(EXACT('A - Základní údaje'!C59,\"\"),\"\",'A - Základní údaje'!C59)","v":""},{"$f":"IF(EXACT('A - Základní údaje'!G59,\"\"),\"\",'A - Základní údaje'!G59)","v":""},null,null,null,null,0]
[null,null,{"$f":"IF(EXACT('A - Základní údaje'!C60,\"\"),\"\",'A - Základní údaje'!C60)","v":""},{"$f":"IF(EXACT('A - Základní údaje'!G60,\"\"),\"\",'A - Základní údaje'!G60)","v":""},null,null,null,null,0]
[null,null,{"$f":"IF(EXACT('A - Základní údaje'!C61,\"\"),\"\",'A - Základní údaje'!C61)","v":""},{"$f":"IF(EXACT('A - Základní údaje'!G61,\"\"),\"\",'A - Základní údaje'!G61)","v":""},null,null,null,null,0]
[null,null,{"$f":"IF(EXACT('A - Základní údaje'!C62,\"\"),\"\",'A - Základní údaje'!C62)","v":""},{"$f":"IF(EXACT('A - Základní údaje'!G62,\"\"),\"\",'A - Základní údaje'!G62)","v":""},null,null,null,null,0]
[null,null,{"$f":"IF(EXACT('A - Základní údaje'!C63,\"\"),\"\",'A - Základní údaje'!C63)","v":""},{"$f":"IF(EXACT('A - Základní údaje'!G63,\"\"),\"\",'A - Základní údaje'!G63)","v":""},null,null,null,null,0]
[null,null,{"$f":"IF(EXACT('A - Základní údaje'!C64,\"\"),\"\",'A - Základní údaje'!C64)","v":""},{"$f":"IF(EXACT('A - Základní údaje'!G64,\"\"),\"\",'A - Základní údaje'!G64)","v":""},null,null,null,null,0]
[null,null,{"$f":"IF(EXACT('A - Základní údaje'!C65,\"\"),\"\",'A - Základní údaje'!C65)","v":""},{"$f":"IF(EXACT('A - Základní údaje'!G65,\"\"),\"\",'A - Základní údaje'!G65)","v":""},null,null,null,null,0]
[null,null,{"$f":"IF(EXACT('A - Základní údaje'!C66,\"\"),\"\",'A - Základní údaje'!C66)","v":""},{"$f":"IF(EXACT('A - Základní údaje'!G66,\"\"),\"\",'A - Základní údaje'!G66)","v":""},null,null,null,null,0]
[null,null,{"$f":"IF(EXACT('A - Základní údaje'!C67,\"\"),\"\",'A - Základní údaje'!C67)","v":""},{"$f":"IF(EXACT('A - Základní údaje'!G67,\"\"),\"\",'A - Základní údaje'!G67)","v":""},null,null,null,null,0]
[null,null,{"$f":"IF(EXACT('A - Základní údaje'!C68,\"\"),\"\",'A - Základní údaje'!C68)","v":""},{"$f":"IF(EXACT('A - Základní údaje'!G68,\"\"),\"\",'A - Základní údaje'!G68)","v":""},null,null,null,null,0]
[null,null,{"$f":"IF(EXACT('A - Základní údaje'!C69,\"\"),\"\",'A - Základní údaje'!C69)","v":""},{"$f":"IF(EXACT('A - Základní údaje'!G69,\"\"),\"\",'A - Základní údaje'!G69)","v":""},null,null,null,null,0]
[null,null,{"$f":"IF(EXACT('A - Základní údaje'!C70,\"\"),\"\",'A - Základní údaje'!C70)","v":""},{"$f":"IF(EXACT('A - Základní údaje'!G70,\"\"),\"\",'A - Základní údaje'!G70)","v":""},null,null,null,null,0]
[null,null,{"$f":"IF(EXACT('A - Základní údaje'!C71,\"\"),\"\",'A - Základní údaje'!C71)","v":""},{"$f":"IF(EXACT('A - Základní údaje'!G71,\"\"),\"\",'A - Základní údaje'!G71)","v":""},null,null,null,null,0]
[null,null,{"$f":"IF(EXACT('A - Základní údaje'!C72,\"\"),\"\",'A - Základní údaje'!C72)","v":""},{"$f":"IF(EXACT('A - Základní údaje'!G72,\"\"),\"\",'A - Základní údaje'!G72)","v":""},null,null,null,null,0]
[null,null,{"$f":"IF(EXACT('A - Základní údaje'!C73,\"\"),\"\",'A - Základní údaje'!C73)","v":""},{"$f":"IF(EXACT('A - Základní údaje'!G73,\"\"),\"\",'A - Základní údaje'!G73)","v":""},null,null,null,null,0]
[null,null,{"$f":"IF(EXACT('A - Základní údaje'!C74,\"\"),\"\",'A - Základní údaje'!C74)","v":""},{"$f":"IF(EXACT('A - Základní údaje'!G74,\"\"),\"\",'A - Základní údaje'!G74)","v":""},null,null,null,null,0]
[null,null,{"$f":"IF(EXACT('A - Základní údaje'!C75,\"\"),\"\",'A - Základní údaje'!C75)","v":""},{"$f":"IF(EXACT('A - Základní údaje'!G75,\"\"),\"\",'A - Základní údaje'!G75)","v":""},null,null,null,null,0]
[null,null,{"$f":"IF(EXACT('A - Základní údaje'!C76,\"\"),\"\",'A - Základní údaje'!C76)","v":""},{"$f":"IF(EXACT('A - Základní údaje'!G76,\"\"),\"\",'A - Základní údaje'!G76)","v":""},null,null,null,null,0]
[null,null,{"$f":"IF(EXACT('A - Základní údaje'!C77,\"\"),\"\",'A - Základní údaje'!C77)","v":""},{"$f":"IF(EXACT('A - Základní údaje'!G77,\"\"),\"\",'A - Základní údaje'!G77)","v":""},null,null,null,null,0]
[null,null,{"$f":"IF(EXACT('A - Základní údaje'!C78,\"\"),\"\",'A - Základní údaje'!C78)","v":""},{"$f":"IF(EXACT('A - Základní údaje'!G78,\"\"),\"\",'A - Základní údaje'!G78)","v":""},null,null,null,null,0]
[null,null,{"$f":"IF(EXACT('A - Základní údaje'!C79,\"\"),\"\",'A - Základní údaje'!C79)","v":""},{"$f":"IF(EXACT('A - Základní údaje'!G79,\"\"),\"\",'A - Základní údaje'!G79)","v":""},null,null,null,null,0]
[null,null,{"$f":"IF(EXACT('A - Základní údaje'!C80,\"\"),\"\",'A - Základní údaje'!C80)","v":""},{"$f":"IF(EXACT('A - Základní údaje'!G80,\"\"),\"\",'A - Základní údaje'!G80)","v":""},null,null,null,null,0]
[null,null,{"$f":"IF(EXACT('A - Základní údaje'!C81,\"\"),\"\",'A - Základní údaje'!C81)","v":""},{"$f":"IF(EXACT('A - Základní údaje'!G81,\"\"),\"\",'A - Základní údaje'!G81)","v":""},null,null,null,null,0]
[null,null,{"$f":"IF(EXACT('A - Základní údaje'!C82,\"\"),\"\",'A - Základní údaje'!C82)","v":""},{"$f":"IF(EXACT('A - Základní údaje'!G82,\"\"),\"\",'A - Základní údaje'!G82)","v":""},null,null,null,null,0]
[null,null,{"$f":"IF(EXACT('A - Základní údaje'!C83,\"\"),\"\",'A - Základní údaje'!C83)","v":""},{"$f":"IF(EXACT('A - Základní údaje'!G83,\"\"),\"\",'A - Základní údaje'!G83)","v":""},null,null,null,null,0]
[null,null,{"$f":"IF(EXACT('A - Základní údaje'!C84,\"\"),\"\",'A - Základní údaje'!C84)","v":""},{"$f":"IF(EXACT('A - Základní údaje'!G84,\"\"),\"\",'A - Základní údaje'!G84)","v":""},null,null,null,null,0]
[null,null,{"$f":"IF(EXACT('A - Základní údaje'!C85,\"\"),\"\",'A - Základní údaje'!C85)","v":""},{"$f":"IF(EXACT('A - Základní údaje'!G85,\"\"),\"\",'A - Základní údaje'!G85)","v":""},null,null,null,null,0]
[null,null,{"$f":"IF(EXACT('A - Základní údaje'!C86,\"\"),\"\",'A - Základní údaje'!C86)","v":""},{"$f":"IF(EXACT('A - Základní údaje'!G86,\"\"),\"\",'A - Základní údaje'!G86)","v":""},null,null,null,null,0]
[null,null,{"$f":"IF(EXACT('A - Základní údaje'!C87,\"\"),\"\",'A - Základní údaje'!C87)","v":""},{"$f":"IF(EXACT('A - Základní údaje'!G87,\"\"),\"\",'A - Základní údaje'!G87)","v":""},null,null,null,null,0]
[null,null,{"$f":"IF(EXACT('A - Základní údaje'!C88,\"\"),\"\",'A - Základní údaje'!C88)","v":""},{"$f":"IF(EXACT('A - Základní údaje'!G88,\"\"),\"\",'A - Základní údaje'!G88)","v":""},null,null,null,null,0]
[null,null,{"$f":"IF(EXACT('A - Základní údaje'!C89,\"\"),\"\",'A - Základní údaje'!C89)","v":""},{"$f":"IF(EXACT('A - Základní údaje'!G89,\"\"),\"\",'A - Základní údaje'!G89)","v":""},null,null,null,null,0]
[null,null,{"$f":"IF(EXACT('A - Základní údaje'!C90,\"\"),\"\",'A - Základní údaje'!C90)","v":""},{"$f":"IF(EXACT('A - Základní údaje'!G90,\"\"),\"\",'A - Základní údaje'!G90)","v":""},null,null,null,null,0]
[null,null,{"$f":"IF(EXACT('A - Základní údaje'!C91,\"\"),\"\",'A - Základní údaje'!C91)","v":""},{"$f":"IF(EXACT('A - Základní údaje'!G91,\"\"),\"\",'A - Základní údaje'!G91)","v":""},null,null,null,null,0]
[null,null,{"$f":"IF(EXACT('A - Základní údaje'!C92,\"\"),\"\",'A - Základní údaje'!C92)","v":""},{"$f":"IF(EXACT('A - Základní údaje'!G92,\"\"),\"\",'A - Základní údaje'!G92)","v":""},null,null,null,null,0]
[null,null,{"$f":"IF(EXACT('A - Základní údaje'!C93,\"\"),\"\",'A - Základní údaje'!C93)","v":""},{"$f":"IF(EXACT('A - Základní údaje'!G93,\"\"),\"\",'A - Základní údaje'!G93)","v":""},null,null,null,null,0]
[null,null,{"$f":"IF(EXACT('A - Základní údaje'!C94,\"\"),\"\",'A - Základní údaje'!C94)","v":""},{"$f":"IF(EXACT('A - Základní údaje'!G94,\"\"),\"\",'A - Základní údaje'!G94)","v":""},null,null,null,null,0]
[null,null,{"$f":"IF(EXACT('A - Základní údaje'!C95,\"\"),\"\",'A - Základní údaje'!C95)","v":""},{"$f":"IF(EXACT('A - Základní údaje'!G95,\"\"),\"\",'A - Základní údaje'!G95)","v":""},null,null,null,null,0]
[null,null,{"$f":"IF(EXACT('A - Základní údaje'!C96,\"\"),\"\",'A - Základní údaje'!C96)","v":""},{"$f":"IF(EXACT('A - Základní údaje'!G96,\"\"),\"\",'A - Základní údaje'!G96)","v":""},null,null,null,null,0]
[null,null,{"$f":"IF(EXACT('A - Základní údaje'!C97,\"\"),\"\",'A - Základní údaje'!C97)","v":""},{"$f":"IF(EXACT('A - Základní údaje'!G97,\"\"),\"\",'A - Základní údaje'!G97)","v":""},null,null,null,null,0]
[null,null,{"$f":"IF(EXACT('A - Základní údaje'!C98,\"\"),\"\",'A - Základní údaje'!C98)","v":""},{"$f":"IF(EXACT('A - Základní údaje'!G98,\"\"),\"\",'A - Základní údaje'!G98)","v":""},null,null,null,null,0]
[null,null,{"$f":"IF(EXACT('A - Základní údaje'!C99,\"\"),\"\",'A - Základní údaje'!C99)","v":""},{"$f":"IF(EXACT('A - Základní údaje'!G99,\"\"),\"\",'A - Základní údaje'!G99)","v":""},null,null,null,null,0]
[null,null,{"$f":"IF(EXACT('A - Základní údaje'!C100,\"\"),\"\",'A - Základní údaje'!C100)","v":""},{"$f":"IF(EXACT('A - Základní údaje'!G100,\"\"),\"\",'A - Základní údaje'!G100)","v":""},null,null,null,null,0]
[null,null,{"$f":"IF(EXACT('A - Základní údaje'!C101,\"\"),\"\",'A - Základní údaje'!C101)","v":""},{"$f":"IF(EXACT('A - Základní údaje'!G101,\"\"),\"\",'A - Základní údaje'!G101)","v":""},null,null,null,null,0]
[null,null,{"$f":"IF(EXACT('A - Základní údaje'!C102,\"\"),\"\",'A - Základní údaje'!C102)","v":""},{"$f":"IF(EXACT('A - Základní údaje'!G102,\"\"),\"\",'A - Základní údaje'!G102)","v":""},null,null,null,null,0]
[null,null,{"$f":"IF(EXACT('A - Základní údaje'!C103,\"\"),\"\",'A - Základní údaje'!C103)","v":""},{"$f":"IF(EXACT('A - Základní údaje'!G103,\"\"),\"\",'A - Základní údaje'!G103)","v":""},null,null,null,null,0]
[null,null,{"$f":"IF(EXACT('A - Základní údaje'!C104,\"\"),\"\",'A - Základní údaje'!C104)","v":""},{"$f":"IF(EXACT('A - Základní údaje'!G104,\"\"),\"\",'A - Základní údaje'!G104)","v":""},null,null,null,null,0]
[null,null,{"$f":"IF(EXACT('A - Základní údaje'!C105,\"\"),\"\",'A - Základní údaje'!C105)","v":""},{"$f":"IF(EXACT('A - Základní údaje'!G105,\"\"),\"\",'A - Základní údaje'!G105)","v":""},null,null,null,null,0]
[null,null,{"$f":"IF(EXACT('A - Základní údaje'!C106,\"\"),\"\",'A - Základní údaje'!C106)","v":""},{"$f":"IF(EXACT('A - Základní údaje'!G106,\"\"),\"\",'A - Základní údaje'!G106)","v":""},null,null,null,null,0]
[null,null,{"$f":"IF(EXACT('A - Základní údaje'!C107,\"\"),\"\",'A - Základní údaje'!C107)","v":""},{"$f":"IF(EXACT('A - Základní údaje'!G107,\"\"),\"\",'A - Základní údaje'!G107)","v":""},null,null,null,null,0]
[null,null,{"$f":"IF(EXACT('A - Základní údaje'!C108,\"\"),\"\",'A - Základní údaje'!C108)","v":""},{"$f":"IF(EXACT('A - Základní údaje'!G108,\"\"),\"\",'A - Základní údaje'!G108)","v":""},null,null,null,null,0]
[null,null,{"$f":"IF(EXACT('A - Základní údaje'!C109,\"\"),\"\",'A - Základní údaje'!C109)","v":""},{"$f":"IF(EXACT('A - Základní údaje'!G109,\"\"),\"\",'A - Základní údaje'!G109)","v":""},null,null,null,null,0]
[null,null,{"$f":"IF(EXACT('A - Základní údaje'!C110,\"\"),\"\",'A - Základní údaje'!C110)","v":""},{"$f":"IF(EXACT('A - Základní údaje'!G110,\"\"),\"\",'A - Základní údaje'!G110)","v":""},null,null,null,null,0]
[null,null,{"$f":"IF(EXACT('A - Základní údaje'!C111,\"\"),\"\",'A - Základní údaje'!C111)","v":""},{"$f":"IF(EXACT('A - Základní údaje'!G111,\"\"),\"\",'A - Základní údaje'!G111)","v":""},null,null,null,null,0]
[null,null,{"$f":"IF(EXACT('A - Základní údaje'!C112,\"\"),\"\",'A - Základní údaje'!C112)","v":""},{"$f":"IF(EXACT('A - Základní údaje'!G112,\"\"),\"\",'A - Základní údaje'!G112)","v":""},null,null,null,null,0]
[null,null,{"$f":"IF(EXACT('A - Základní údaje'!C113,\"\"),\"\",'A - Základní údaje'!C113)","v":""},{"$f":"IF(EXACT('A - Základní údaje'!G113,\"\"),\"\",'A - Základní údaje'!G113)","v":""},null,null,null,null,0]
[null,null,{"$f":"IF(EXACT('A - Základní údaje'!C114,\"\"),\"\",'A - Základní údaje'!C114)","v":""},{"$f":"IF(EXACT('A - Základní údaje'!G114,\"\"),\"\",'A - Základní údaje'!G114)","v":""},null,null,null,null,0]
[null,null,{"$f":"IF(EXACT('A - Základní údaje'!C115,\"\"),\"\",'A - Základní údaje'!C115)","v":""},{"$f":"IF(EXACT('A - Základní údaje'!G115,\"\"),\"\",'A - Základní údaje'!G115)","v":""},null,null,null,null,0]
[null,null,{"$f":"IF(EXACT('A - Základní údaje'!C116,\"\"),\"\",'A - Základní údaje'!C116)","v":""},{"$f":"IF(EXACT('A - Základní údaje'!G116,\"\"),\"\",'A - Základní údaje'!G116)","v":""},null,null,null,null,0]
[null,null,{"$f":"IF(EXACT('A - Základní údaje'!C117,\"\"),\"\",'A - Základní údaje'!C117)","v":""},{"$f":"IF(EXACT('A - Základní údaje'!G117,\"\"),\"\",'A - Základní údaje'!G117)","v":""},null,null,null,null,{"$f":"IF(G75+F75+E75>10000,G75,0)","v":0}]
[null,null,{"$f":"IF(EXACT('A - Základní údaje'!C118,\"\"),\"\",'A - Základní údaje'!C118)","v":""},{"$f":"IF(EXACT('A - Základní údaje'!G118,\"\"),\"\",'A - Základní údaje'!G118)","v":""},null,null,null,null,0]
[null,null,{"$f":"IF(EXACT('A - Základní údaje'!C119,\"\"),\"\",'A - Základní údaje'!C119)","v":""},{"$f":"IF(EXACT('A - Základní údaje'!G119,\"\"),\"\",'A - Základní údaje'!G119)","v":""},null,null,null,null,0]
[null,null,{"$f":"IF(EXACT('A - Základní údaje'!C120,\"\"),\"\",'A - Základní údaje'!C120)","v":""},{"$f":"IF(EXACT('A - Základní údaje'!G120,\"\"),\"\",'A - Základní údaje'!G120)","v":""},null,null,null,null,0]
[null,null,{"$f":"IF(EXACT('A - Základní údaje'!C121,\"\"),\"\",'A - Základní údaje'!C121)","v":""},{"$f":"IF(EXACT('A - Základní údaje'!G121,\"\"),\"\",'A - Základní údaje'!G121)","v":""},null,null,null,null,0]
[null,null,{"$f":"IF(EXACT('A - Základní údaje'!C122,\"\"),\"\",'A - Základní údaje'!C122)","v":""},{"$f":"IF(EXACT('A - Základní údaje'!G122,\"\"),\"\",'A - Základní údaje'!G122)","v":""},null,null,null,null,0]
[null,null,{"$f":"IF(EXACT('A - Základní údaje'!C123,\"\"),\"\",'A - Základní údaje'!C123)","v":""},{"$f":"IF(EXACT('A - Základní údaje'!G123,\"\"),\"\",'A - Základní údaje'!G123)","v":""},null,null,null,null,0]
[null,null,{"$f":"IF(EXACT('A - Základní údaje'!C124,\"\"),\"\",'A - Základní údaje'!C124)","v":""},{"$f":"IF(EXACT('A - Základní údaje'!G124,\"\"),\"\",'A - Základní údaje'!G124)","v":""},null,null,null,null,0]
[null,null,{"$f":"IF(EXACT('A - Základní údaje'!C125,\"\"),\"\",'A - Základní údaje'!C125)","v":""},{"$f":"IF(EXACT('A - Základní údaje'!G125,\"\"),\"\",'A - Základní údaje'!G125)","v":""},null,null,null,null,0]
[null,null,{"$f":"IF(EXACT('A - Základní údaje'!C126,\"\"),\"\",'A - Základní údaje'!C126)","v":""},{"$f":"IF(EXACT('A - Základní údaje'!G126,\"\"),\"\",'A - Základní údaje'!G126)","v":""},null,null,null,null,0]
[null,null,{"$f":"IF(EXACT('A - Základní údaje'!C127,\"\"),\"\",'A - Základní údaje'!C127)","v":""},{"$f":"IF(EXACT('A - Základní údaje'!G127,\"\"),\"\",'A - Základní údaje'!G127)","v":""},null,null,null,null,0]
[null,null,{"$f":"IF(EXACT('A - Základní údaje'!C128,\"\"),\"\",'A - Základní údaje'!C128)","v":""},{"$f":"IF(EXACT('A - Základní údaje'!G128,\"\"),\"\",'A - Základní údaje'!G128)","v":""},null,null,null,null,0]
[null,null,{"$f":"IF(EXACT('A - Základní údaje'!C129,\"\"),\"\",'A - Základní údaje'!C129)","v":""},{"$f":"IF(EXACT('A - Základní údaje'!G129,\"\"),\"\",'A - Základní údaje'!G129)","v":""},null,null,null,null,0]
[null,null,{"$f":"IF(EXACT('A - Základní údaje'!C130,\"\"),\"\",'A - Základní údaje'!C130)","v":""},{"$f":"IF(EXACT('A - Základní údaje'!G130,\"\"),\"\",'A - Základní údaje'!G130)","v":""},null,null,null,null,0]
[null,null,{"$f":"IF(EXACT('A - Základní údaje'!C131,\"\"),\"\",'A - Základní údaje'!C131)","v":""},{"$f":"IF(EXACT('A - Základní údaje'!G131,\"\"),\"\",'A - Základní údaje'!G131)","v":""},null,null,null,null,0]
[null,null,{"$f":"IF(EXACT('A - Základní údaje'!C132,\"\"),\"\",'A - Základní údaje'!C132)","v":""},{"$f":"IF(EXACT('A - Základní údaje'!G132,\"\"),\"\",'A - Základní údaje'!G132)","v":""},null,null,null,null,0]
[null,null,{"$f":"IF(EXACT('A - Základní údaje'!C133,\"\"),\"\",'A - Základní údaje'!C133)","v":""},{"$f":"IF(EXACT('A - Základní údaje'!G133,\"\"),\"\",'A - Základní údaje'!G133)","v":""},null,null,null,null,0]
[null,null,{"$f":"IF(EXACT('A - Základní údaje'!C134,\"\"),\"\",'A - Základní údaje'!C134)","v":""},{"$f":"IF(EXACT('A - Základní údaje'!G134,\"\"),\"\",'A - Základní údaje'!G134)","v":""},null,null,null,null,0]
[null,null,{"$f":"IF(EXACT('A - Základní údaje'!C135,\"\"),\"\",'A - Základní údaje'!C135)","v":""},{"$f":"IF(EXACT('A - Základní údaje'!G135,\"\"),\"\",'A - Základní údaje'!G135)","v":""},null,null,null,null,0]
[null,null,{"$f":"IF(EXACT('A - Základní údaje'!C136,\"\"),\"\",'A - Základní údaje'!C136)","v":""},{"$f":"IF(EXACT('A - Základní údaje'!G136,\"\"),\"\",'A - Základní údaje'!G136)","v":""},null,null,null,null,0]
[null,null,{"$f":"IF(EXACT('A - Základní údaje'!C137,\"\"),\"\",'A - Základní údaje'!C137)","v":""},{"$f":"IF(EXACT('A - Základní údaje'!G137,\"\"),\"\",'A - Základní údaje'!G137)","v":""},null,null,null,null,0]
[null,null,{"$f":"IF(EXACT('A - Základní údaje'!C138,\"\"),\"\",'A - Základní údaje'!C138)","v":""},{"$f":"IF(EXACT('A - Základní údaje'!G138,\"\"),\"\",'A - Základní údaje'!G138)","v":""},null,null,null,null,0]
[null,null,{"$f":"IF(EXACT('A - Základní údaje'!C139,\"\"),\"\",'A - Základní údaje'!C139)","v":""},{"$f":"IF(EXACT('A - Základní údaje'!G139,\"\"),\"\",'A - Základní údaje'!G139)","v":""},null,null,null,null,0]
[null,null,{"$f":"IF(EXACT('A - Základní údaje'!C140,\"\"),\"\",'A - Základní údaje'!C140)","v":""},{"$f":"IF(EXACT('A - Základní údaje'!G140,\"\"),\"\",'A - Základní údaje'!G140)","v":""},null,null,null,null,0]
[null,null,{"$f":"IF(EXACT('A - Základní údaje'!C141,\"\"),\"\",'A - Základní údaje'!C141)","v":""},{"$f":"IF(EXACT('A - Základní údaje'!G141,\"\"),\"\",'A - Základní údaje'!G141)","v":""},null,null,null,null,0]
[null,null,{"$f":"IF(EXACT('A - Základní údaje'!C142,\"\"),\"\",'A - Základní údaje'!C142)","v":""},{"$f":"IF(EXACT('A - Základní údaje'!G142,\"\"),\"\",'A - Základní údaje'!G142)","v":""},null,null,null,null,0]
[null,null,{"$f":"IF(EXACT('A - Základní údaje'!C143,\"\"),\"\",'A - Základní údaje'!C143)","v":""},{"$f":"IF(EXACT('A - Základní údaje'!G143,\"\"),\"\",'A - Základní údaje'!G143)","v":""},null,null,null,null,0]
[null,null,{"$f":"IF(EXACT('A - Základní údaje'!C144,\"\"),\"\",'A - Základní údaje'!C144)","v":""},{"$f":"IF(EXACT('A - Základní údaje'!G144,\"\"),\"\",'A - Základní údaje'!G144)","v":""},null,null,null,null,0]
[null,null,{"$f":"IF(EXACT('A - Základní údaje'!C145,\"\"),\"\",'A - Základní údaje'!C145)","v":""},{"$f":"IF(EXACT('A - Základní údaje'!G145,\"\"),\"\",'A - Základní údaje'!G145)","v":""},null,null,null,null,0]
[null,null,{"$f":"IF(EXACT('A - Základní údaje'!C146,\"\"),\"\",'A - Základní údaje'!C146)","v":""},{"$f":"IF(EXACT('A - Základní údaje'!G146,\"\"),\"\",'A - Základní údaje'!G146)","v":""},null,null,null,null,0]
[null,null,{"$f":"IF(EXACT('A - Základní údaje'!C147,\"\"),\"\",'A - Základní údaje'!C147)","v":""},{"$f":"IF(EXACT('A - Základní údaje'!G147,\"\"),\"\",'A - Základní údaje'!G147)","v":""},null,null,null,null,0]
[null,null,{"$f":"IF(EXACT('A - Základní údaje'!C148,\"\"),\"\",'A - Základní údaje'!C148)","v":""},{"$f":"IF(EXACT('A - Základní údaje'!G148,\"\"),\"\",'A - Základní údaje'!G148)","v":""},null,null,null,null,0]
[null,null,{"$f":"IF(EXACT('A - Základní údaje'!C149,\"\"),\"\",'A - Základní údaje'!C149)","v":""},{"$f":"IF(EXACT('A - Základní údaje'!G149,\"\"),\"\",'A - Základní údaje'!G149)","v":""},null,null,null,null,0]
[null,null,{"$f":"IF(EXACT('A - Základní údaje'!C150,\"\"),\"\",'A - Základní údaje'!C150)","v":""},{"$f":"IF(EXACT('A - Základní údaje'!G150,\"\"),\"\",'A - Základní údaje'!G150)","v":""},null,null,null,null,0]
[null,null,{"$f":"IF(EXACT('A - Základní údaje'!C151,\"\"),\"\",'A - Základní údaje'!C151)","v":""},{"$f":"IF(EXACT('A - Základní údaje'!G151,\"\"),\"\",'A - Základní údaje'!G151)","v":""},null,null,null,null,0]
[null,null,{"$f":"IF(EXACT('A - Základní údaje'!C152,\"\"),\"\",'A - Základní údaje'!C152)","v":""},{"$f":"IF(EXACT('A - Základní údaje'!G152,\"\"),\"\",'A - Základní údaje'!G152)","v":""},null,null,null,null,0]
[]
[]
[null,"Zdravotní a sociální pojištění (Kč):",null,{"$f":"'A - Základní údaje'!C163","v":""}]
[]
[null,null,"Studenti:",null,null,null,{"$f":"0.34*SUMIF(D9:D110,Values!$A$48,E9:E110)+0.34*SUMIF(D9:D110,Values!$A$48,F9:F110)+0.34*SUMIF(D9:D110,Values!$A$48,I9:I110)","v":0},0]
[]
[null,null,"Zaměstnanci:",null,null,null,{"$f":"0.34*(SUMIF(D9:D110,Values!$A$49,E9:E110)+SUMIF(D9:D110,Values!$A$50,E9:E110))+0.34*(SUMIF(D9:D110,Values!$A$49,F9:F110)+SUMIF(D9:D110,Values!$A$50,F9:F110))+0.34*(SUMIF(D9:D110,Values!$A$49,I9:I110)+SUMIF(D9:D110,Values!$A$50,I9:I110))","v":0},0]
[]
[]
[null,"Podíl osobních nákladů:",null,{"$f":"H115+H117","v":0},{"$f":"SUM(E9:E110)","v":0},{"$f":"SUM(F9:F110)","v":0},{"$f":"SUM(G9:G110)","v":0},{"$f":"SUM(H9:H110)","v":0}]
[]
[null,null,"Studenti:",{"$f":"IF(EXACT(SUM(D120:H120),0),\"\",H122/SUM(D120:H120))","v":""},null,null,null,{"$f":"SUMIF(D9:D110,Values!$A$48,E9:E110)+SUMIF(D9:D110,Values!$A$48,F9:F110)+SUMIF(D9:D110,Values!$A$48,H9:H110)+SUMIF(D9:D110,Values!$A$48,G9:G110)+H115","v":0}]
[]
[null,null,"Zaměstnanci:",{"$f":"IF(EXACT(SUM(D120:H120),0),\"\",H124/SUM(D120:H120))","v":""},null,null,null,{"$f":"(SUMIF(D9:D110,Values!$A$49,E9:E110)+SUMIF(D9:D110,Values!$A$50,E9:E110))+(SUMIF(D9:D110,Values!$A$49,F9:F110)+SUMIF(D9:D110,Values!$A$50,F9:F110))+(SUMIF(D9:D110,Values!$A$49,G9:G110)+SUMIF(D9:D110,Values!$A$50,G9:G110))+(SUMIF(D9:D110,Values!$A$49,H9:H110)+SUMIF(D9:D110,Values!$A$50,H9:H110))+H117","v":0}]
[]
[]
[]
[null,null,{"$f":"IF($D$122<0.6,Values!$A$95,\"\")","v":""}]
[null,null,{"$f":"IF(OR(G115<>H115,G117<>H117),Values!A96,\"\")","v":""}]

{"sheet":"D - Věcné náklady","index":3,"n_rows":187,"n_cols":8,"rows_kept":187,"cut":false,"hidden":false,"merged":[[9,2,9,5],[10,2,10,5],[11,2,11,5],[12,2,12,5],[13,2,13,5],[25,2,25,5],[26,2,26,5],[27,2,27,5],[34,2,34,5],[38,2,38,5],[28,2,28,5],[29,2,29,5],[30,2,30,5],[31,2,31,5],[32,2,32,5],[33,2,33,5],[35,2,35,5],[36,2,36,5],[37,2,37,5],[47,2,47,5],[48,2,48,5],[49,2,49,5],[50,2,50,5],[51,2,51,5],[52,2,52,5],[46,2,46,5],[59,2,59,5],[60,2,60,5],[61,2,61,5],[62,2,62,5],[63,2,63,5],[64,2,64,5],[53,2,53,5],[54,2,54,5],[55,2,55,5],[56,2,56,5],[57,2,57,5],[58,2,58,5],[78,2,78,5],[79,2,79,5],[80,2,80,5],[81,2,81,5],[82,2,82,5],[83,2,83,5],[65,2,65,5],[73,2,73,5],[74,2,74,5],[75,2,75,5],[76,2,76,5],[77,2,77,5],[90,2,90,5],[91,2,91,5],[92,2,92,5],[100,2,100,5],[101,2,101,5],[102,2,102,5],[84,2,84,5],[85,2,85,5],[86,2,86,5],[87,2,87,5],[88,2,88,5],[89,2,89,5],[109,2,109,5],[110,2,110,5],[111,2,111,5],[112,2,112,5],[113,2,113,5],[114,2,114,5],[103,2,103,5],[104,2,104,5],[105,2,105,5],[106,2,106,5],[107,2,107,5],[108,2,108,5],[133,2,133,5],[134,2,134,5],[135,2,135,5],[136,2,136,5],[137,2,137,5],[138,2,138,5],[115,2,115,5],[116,2,116,5],[117,2,117,5],[118,2,118,5],[119,2,119,5],[132,2,132,5],[145,2,145,5],[146,2,146,5],[147,2,147,5],[148,2,148,5],[149,2,149,5],[150,2,150,5],[139,2,139,5],[140,2,140,5],[141,2,141,5],[142,2,142,5],[143,2,143,5],[144,2,144,5],[166,2,166,5],[167,2,167,5],[168,2,168,5],[169,2,169,5],[170,2,170,5],[171,2,171,5],[151,2,151,5],[161,2,161,5],[162,2,162,5],[163,2,163,5],[164,2,164,5],[165,2,165,5],[187,2,187,6],[178,2,178,5],[179,2,179,5],[180,2,180,5],[172,2,172,5],[173,2,173,5],[174,2,174,5],[175,2,175,5],[176,2,176,5],[177,2,177,5]]}
[null,null,null,null,null,null,"Část D - Věcné náklady"]
[]
[]
[null,"Přihláška projektu SGS na rok 2019"]
[]
[]
[null,"Spotřeba materiálu (Kč):",null,null,null,null,{"$f":"SUM(G10:G39)","v":0}]
[]
[null,null,"Položka:",null,null,null,"Částka:"]
[null,1]
[null,{"$f":"B10+1","v":2}]
[null,{"$f":"B11+1","v":3}]
[null,4]
[null,5]
[null,6]
[null,7]
[null,8]
[null,9]
[null,10]
[null,11]
[null,12]
[null,13]
[null,14]
[null,15]
[null,16]
[null,17]
[null,18]
[null,19]
[null,20]
[null,21]
[null,22]
[null,23]
[null,24]
[null,25]
[null,26]
[null,27]
[null,28]
[null,29]
[null,30]
[]
[]
[]
[]
[null,"Opravy a udržování (Kč):",null,null,null,null,{"$f":"SUM(G47:G66)","v":0}]
[]
[null,null,"Položka:",null,null,null,"Částka:"]
[null,1]
[null,{"$f":"B47+1","v":2}]
[null,{"$f":"B48+1","v":3}]
[null,4]
[null,5]
[null,6]
[null,7]
[null,8]
[null,9]
[null,10]
[null,11]
[null,12]
[null,13]
[null,14]
[null,15]
[null,16]
[null,17]
[null,18]
[null,19]
[null,20]
[]
[]
[]
[]
[null,"Náklady na cestovné (Kč):",null,null,null,null,{"$f":"SUM(G74:G93)","v":0}]
[]
[null,null,"Položka:",null,null,null,"Částka:"]
[null,1]
[null,{"$f":"B74+1","v":2}]
[null,{"$f":"B75+1","v":3}]
[null,4]
[null,5]
[null,6]
[null,7]
[null,8]
[null,9]
[null,10]
[null,11]
[null,12]
[null,13]
[null,14]
[null,15]
[null,16]
[null,17]
[null,18]
[null,19]
[null,20]
[]
[]
[]
[]
[null,"Ostatní služby (Kč):",null,null,null,null,{"$f":"SUM(G101:G120)","v":0}]
[]
[null,null,"Položka:",null,null,null,"Částka:"]
[null,1]
[null,{"$f":"B101+1","v":2}]
[null,{"$f":"B102+1","v":3}]
[null,4]
[null,5]
[null,6]
[null,7]
[null,8]
[null,9]
[null,10]
[null,11]
[null,12]
[null,13]
[null,14]
[null,15]
[null,16]
[null,17]
[null,18]
[null,19]
[null,20]
[]
[]
[]
[]
[null,"Jiné ostatní (nemateriální) náklady (např. vložné) (Kč):",null,null,null,null,{"$f":"SUM(G128:G129,G133:G152)","v":0}]
[]
[null,null,"Položka:",null,null,null,"Částka:"]
[null,1,"Stipendia",null,null,null,{"$f":"SUM('C - Osobní náklady'!H9:H110)","v":0}]
[null,{"$f":"B128+1","v":2},"Doplňkové (režijní) náklady"]
[]
[null,null,null,{"$f":"SUM('C - Osobní náklady'!H122,'C - Osobní náklady'!H124,G7,G44,G71,G98,G133:G152,G159)","v":0},"(Nákladový koeficient:",null,0.28000000000000003,")"]
[]
[null,3]
[null,{"$f":"B133+1","v":4}]
[null,{"$f":"B134+1","v":5}]
[null,6]
[null,7]
[null,8]
[null,9]
[null,10]
[null,11]
[null,12]
[null,13]
[null,14]
[null,15]
[null,16]
[null,17]
[null,18]
[null,19]
[null,20]
[null,21]
[null,22]
[]
[]
[]
[null,null,{"$f":"IF(D131*G131<>G129,Values!A97,\"\")","v":""}]
[]
[]
[null,"Poskytnuté členské příspěvky (Kč):",null,null,null,null,{"$f":"SUM(G162:G181)","v":0}]
[]
[null,null,"Položka:",null,null,null,"Částka:"]
[null,1]
[null,{"$f":"B162+1","v":2}]
[null,{"$f":"B163+1","v":3}]
[null,4]
[null,5]
[null,6]
[null,7]
[null,8]
[null,9]
[null,10]
[null,11]
[null,12]
[null,13]
[null,14]
[null,15]
[null,16]
[null,17]
[null,18]
[null,19]
[null,20]
[]
[]
[]
[]
[]
[null,"Stručné zdůvodnění pořízení položek věcných nákladů:"]

{"sheet":"E - Investiční náklady","index":4,"n_rows":62,"n_cols":7,"rows_kept":62,"cut":false,"hidden":false,"merged":[[19,2,19,5],[9,2,9,5],[10,2,10,5],[11,2,11,5],[12,2,12,5],[13,2,13,5],[14,2,14,5],[15,2,15,5],[16,2,16,5],[17,2,17,5],[18,2,18,5],[38,2,38,5],[20,2,20,5],[21,2,21,5],[22,2,22,5],[23,2,23,5],[24,2,24,5],[25,2,25,5],[26,2,26,5],[27,2,27,5],[28,2,28,5],[36,2,36,5],[37,2,37,5],[50,2,50,5],[39,2,39,5],[40,2,40,5],[41,2,41,5],[42,2,42,5],[43,2,43,5],[44,2,44,5],[45,2,45,5],[46,2,46,5],[47,2,47,5],[48,2,48,5],[49,2,49,5],[62,2,62,6],[51,2,51,5],[52,2,52,5],[53,2,53,5],[54,2,54,5],[55,2,55,5]]}
[null,null,null,null,null,null,"Část E - Investiční náklady"]
[]
[]
[null,"Přihláška projektu SGS na rok 2019"]
[]
[]
[null,"Hmotný majetek (Kč):",null,null,null,null,{"$f":"SUM(G10:G29)","v":0}]
[]
[null,null,"Položka:",null,null,null,"Částka:"]
[null,1]
[null,{"$f":"B10+1","v":2}]
[null,{"$f":"B11+1","v":3}]
[null,4]
[null,5]
[null,6]
[null,7]
[null,8]
[null,9]
[null,10]
[null,11]
[null,12]
[null,13]
[null,14]
[null,15]
[null,16]
[null,17]
[null,18]
[null,19]
[null,20]
[]
[]
[]
[]
[null,"Nehmotný majetek (Kč):",null,null,null,null,{"$f":"SUM(G37:G56)","v":0}]
[]
[null,null,"Položka:",null,null,null,"Částka:"]
[null,1]
[null,{"$f":"B37+1","v":2}]
[null,{"$f":"B38+1","v":3}]
[null,4]
[null,5]
[null,6]
[null,7]
[null,8]
[null,9]
[null,10]
[null,11]
[null,12]
[null,13]
[null,14]
[null,15]
[null,16]
[null,17]
[null,18]
[null,19]
[null,20]
[]
[]
[]
[]
[]
[null,"Stručné zdůvodnění pořízení položek investičních nákladů:"]

{"sheet":"F - Celkové náklady","index":5,"n_rows":44,"n_cols":8,"rows_kept":44,"cut":false,"hidden":false,"merged":[]}
[null,null,null,null,null,null,null,"Část F - Celkové náklady"]
[]
[]
[null,"Přihláška projektu SGS na rok 2019"]
[]
[]
[null,"Osobní náklady (Kč):",null,null,null,null,null,{"$f":"SUM(H9:H12,H14:H17)","v":0}]
[null,null,"Studenti:"]
[null,null,null,"Mzdy:",null,null,null,{"$f":"SUMIF('C - Osobní náklady'!$D$9:$D$110,Values!$A$48,'C - Osobní náklady'!$E$9:$E$110)","v":0}]
[null,null,null,"Mimořádné odměny:",null,null,null,{"$f":"SUMIF('C - Osobní náklady'!$D$9:$D$110,Values!A48,'C - Osobní náklady'!$F$9:$F$110)","v":0}]
[null,null,null,"DPP/DPČ:",null,null,null,{"$f":"SUMIF('C - Osobní náklady'!$D$9:$D$110,Values!$A$48,'C - Osobní náklady'!$G$9:$G$110)","v":0}]
[null,null,null,"Sociální a zdravotní pojištění:",null,null,null,{"$f":"'C - Osobní náklady'!H115","v":0}]
[null,null,"Zaměstnanci"]
[null,null,null,"Mzdy:",null,null,null,{"$f":"SUM('C - Osobní náklady'!$E$9:$E$110)-H9","v":0}]
[null,null,null,"Mimořádné odměny:",null,null,null,{"$f":"SUM('C - Osobní náklady'!$F$9:$F$110)-H10","v":0}]
[null,null,null,"DPP/DPČ:",null,null,null,{"$f":"SUM('C - Osobní náklady'!$G$9:$G$110)-H11","v":0}]
[null,null,null,"Sociální a zdravotní pojištění:",null,null,null,{"$f":"'C - Osobní náklady'!H117","v":0}]
[]
[]
[null,"Věcné náklady (Kč):",null,null,null,null,null,{"$f":"SUM(H21:H29)","v":0}]
[null,null,"Spotřeba materiálu:",null,null,null,null,{"$f":"'D - Věcné náklady'!G7","v":0}]
[null,null,"Opravy a udržování:",null,null,null,null,{"$f":"'D - Věcné náklady'!G44","v":0}]
[null,null,"Náklady na cestovné:",null,null,null,null,{"$f":"'D - Věcné náklady'!G71","v":0}]
[null,null,"Ostatní služby:",null,null,null,null,{"$f":"'D - Věcné náklady'!G98","v":0}]
[null,null,"Jiné ostatní (nemateriální) náklady (např. vložné):"]
[null,null,null,"Stipendia:",null,null,null,{"$f":"'D - Věcné náklady'!G128","v":0}]
[null,null,null,"Doplňkové (režijní) náklady:",null,null,null,{"$f":"'D - Věcné náklady'!G129","v":0}]
[null,null,null,"Další (např. vložné):",null,null,null,{"$f":"SUM('D - Věcné náklady'!G133:G152)","v":0}]
[null,null,"Poskytnuté členské příspěvky:",null,null,null,null,{"$f":"'D - Věcné náklady'!G159","v":0}]
[]
[]
[null,"Investiční náklady (Kč):",null,null,null,null,null,{"$f":"SUM(H33:H34)","v":0}]
[null,null,"Hmotný majetek:",null,null,null,null,{"$f":"'E - Investiční náklady'!G7","v":0}]
[null,null,"Nehmotný majetek:",null,null,null,null,{"$f":"'E - Investiční náklady'!G34","v":0}]
[]
[]
[null,"Celkové náklady projektu (Kč):",null,null,null,null,null,{"$f":"SUM(H7,H20,H32)","v":0}]
[]
[]
[]
[]
[]
[null,null,{"$f":"'C - Osobní náklady'!C129","v":""}]
[null,null,{"$f":"'D - Věcné náklady'!C156","v":""}]

{"sheet":"H - Hodnocení","index":6,"n_rows":143,"n_cols":8,"rows_kept":143,"cut":false,"hidden":true,"merged":[[104,4,104,7],[117,4,117,7],[9,4,9,7],[15,4,15,7],[17,4,17,7],[19,4,19,7],[23,4,23,7],[26,4,26,7],[27,4,27,7],[28,4,28,7],[11,4,11,7],[13,4,13,7],[133,2,133,7],[140,2,140,7],[128,4,128,7],[135,6,135,7],[142,6,142,7]]}
[null,null,null,null,null,null,null,"Část H - Souhrnné údaje a hodnocení"]
[]
[]
[null,"Přihláška projektu SGS na rok 2019"]
[]
[]
[null,"Jazyk přihlášky:"]
[]
[]
[null,"Název projektu česky:",null,null,{"$f":"IF(EXACT('A - Základní údaje'!D10,\"\"),\"\",'A - Základní údaje'!D10)","v":""}]
[]
[null,"Název projektu anglicky:",null,null,{"$f":"IF(EXACT('A - Základní údaje'!D12,\"\"),\"\",'A - Základní údaje'!D12)","v":""}]
[]
[null,"Typ projektu:",null,null,{"$f":"IF(EXACT('A - Základní údaje'!D14,\"\"),\"\",'A - Základní údaje'!D14)","v":""}]
[]
[null,"Interní číslo projektu:"]
[]
[null,"Datum zahájení:",null,null,{"$f":"IF(EXACT('A - Základní údaje'!D16,\"\"),\"\",'A - Základní údaje'!D16)","v":""}]
[]
[null,"Datum konce:",null,null,{"$f":"IF(EXACT('A - Základní údaje'!D18,\"\"),\"\",'A - Základní údaje'!D18)","v":""}]
[]
[]
[]
[null,"Řešitel projektu:",null,null,{"$f":"IF(EXACT('A - Základní údaje'!D23:G23,\"\"),\"\",'A - Základní údaje'!D23:G23)","v":""}]
[]
[]
[null,"Počet členů řešitelského týmu:",null,null,{"$f":"COUNTIF('A - Základní údaje'!G52:G152,\"Student\")+COUNTIF('A - Základní údaje'!G52:G152,\"Akademik\")+COUNTIF('A - Základní údaje'!G52:G152,\"Školitel\")","v":0}]
[null,null,"z toho studentů:",null,{"$f":"COUNTIF('A - Základní údaje'!G52:G152,\"Student\")","v":0}]
[null,null,"a školitelů:",null,{"$f":"COUNTIF('A - Základní údaje'!G52:G152,\"Školitel\")","v":0}]
[]
[]
[]
[null,"Plánované výstupy projektu vstupující do RIV:"]
[null,null,"Druh výsledku:",null,null,null,null,"Počet:"]
[null,null,{"$f":"IF(EXACT('B - Návrh projektu'!C31,\"\"),\"\",'B - Návrh projektu'!C31)","v":""},null,null,null,null,{"$f":"IF(EXACT('B - Návrh projektu'!G31,\"\"),\"\",'B - Návrh projektu'!G31)","v":""}]
[null,null,{"$f":"IF(EXACT('B - Návrh projektu'!C32,\"\"),\"\",'B - Návrh projektu'!C32)","v":""},null,null,null,null,{"$f":"IF(EXACT('B - Návrh projektu'!G32,\"\"),\"\",'B - Návrh projektu'!G32)","v":""}]
[null,null,{"$f":"IF(EXACT('B - Návrh projektu'!C33,\"\"),\"\",'B - Návrh projektu'!C33)","v":""},null,null,null,null,{"$f":"IF(EXACT('B - Návrh projektu'!G33,\"\"),\"\",'B - Návrh projektu'!G33)","v":""}]
[null,null,{"$f":"IF(EXACT('B - Návrh projektu'!C34,\"\"),\"\",'B - Návrh projektu'!C34)","v":""},null,null,null,null,{"$f":"IF(EXACT('B - Návrh projektu'!G34,\"\"),\"\",'B - Návrh projektu'!G34)","v":""}]
[null,null,{"$f":"IF(EXACT('B - Návrh projektu'!C35,\"\"),\"\",'B - Návrh projektu'!C35)","v":""},null,null,null,null,{"$f":"IF(EXACT('B - Návrh projektu'!G35,\"\"),\"\",'B - Návrh projektu'!G35)","v":""}]
[null,null,{"$f":"IF(EXACT('B - Návrh projektu'!C36,\"\"),\"\",'B - Návrh projektu'!C36)","v":""},null,null,null,null,{"$f":"IF(EXACT('B - Návrh projektu'!G36,\"\"),\"\",'B - Návrh projektu'!G36)","v":""}]
[null,null,{"$f":"IF(EXACT('B - Návrh projektu'!C37,\"\"),\"\",'B - Návrh projektu'!C37)","v":""},null,null,null,null,{"$f":"IF(EXACT('B - Návrh projektu'!G37,\"\"),\"\",'B - Návrh projektu'!G37)","v":""}]
[null,null,{"$f":"IF(EXACT('B - Návrh projektu'!C38,\"\"),\"\",'B - Návrh projektu'!C38)","v":""},null,null,null,null,{"$f":"IF(EXACT('B - Návrh projektu'!G38,\"\"),\"\",'B - Návrh projektu'!G38)","v":""}]
[null,null,{"$f":"IF(EXACT('B - Návrh projektu'!C39,\"\"),\"\",'B - Návrh projektu'!C39)","v":""},null,null,null,null,{"$f":"IF(EXACT('B - Návrh projektu'!G39,\"\"),\"\",'B - Návrh projektu'!G39)","v":""}]
[null,null,{"$f":"IF(EXACT('B - Návrh projektu'!C40,\"\"),\"\",'B - Návrh projektu'!C40)","v":""},null,null,null,null,{"$f":"IF(EXACT('B - Návrh projektu'!G40,\"\"),\"\",'B - Návrh projektu'!G40)","v":""}]
[null,null,{"$f":"IF(EXACT('B - Návrh projektu'!C41,\"\"),\"\",'B - Návrh projektu'!C41)","v":""},null,null,null,null,{"$f":"IF(EXACT('B - Návrh projektu'!G41,\"\"),\"\",'B - Návrh projektu'!G41)","v":""}]
[null,null,{"$f":"IF(EXACT('B - Návrh projektu'!C42,\"\"),\"\",'B - Návrh projektu'!C42)","v":""},null,null,null,null,{"$f":"IF(EXACT('B - Návrh projektu'!G42,\"\"),\"\",'B - Návrh projektu'!G42)","v":""}]
[null,null,{"$f":"IF(EXACT('B - Návrh projektu'!C43,\"\"),\"\",'B - Návrh projektu'!C43)","v":""},null,null,null,null,{"$f":"IF(EXACT('B - Návrh projektu'!G43,\"\"),\"\",'B - Návrh projektu'!G43)","v":""}]
[null,null,{"$f":"IF(EXACT('B - Návrh projektu'!C44,\"\"),\"\",'B - Návrh projektu'!C44)","v":""},null,null,null,null,{"$f":"IF(EXACT('B - Návrh projektu'!G44,\"\"),\"\",'B - Návrh projektu'!G44)","v":""}]
[null,null,{"$f":"IF(EXACT('B - Návrh projektu'!C45,\"\"),\"\",'B - Návrh projektu'!C45)","v":""},null,null,null,null,{"$f":"IF(EXACT('B - Návrh projektu'!G45,\"\"),\"\",'B - Návrh projektu'!G45)","v":""}]
[]
[]
[]
[null,"Plánované náklady projektu:",null,null,null,"Požadované:",null,"Upravené:"]
[]
[]
[null,"Osobní náklady (Kč):",null,null,null,{"$f":"'F - Celkové náklady'!H7","v":0},null,{"$f":"SUM(H58:H61,H66:H69)","v":0}]
[null,null,"Studenti"]
[null,null,null,"Mzdy:",null,{"$f":"'F - Celkové náklady'!H9","v":0},null,0]
[null,null,null,"Odměny:",null,{"$f":"'F - Celkové náklady'!H10","v":0},null,0]
[null,null,null,"OON:",null,{"$f":"'F - Celkové náklady'!H11","v":0},null,0]
[null,null,null,"Sociální a zdravotní pojištění:",null,{"$f":"'F - Celkové náklady'!H12","v":0},{"$f":"SUM(H58:H59)","v":0},0]
[]
[]
[]
[null,null,"Zaměstnanci:"]
[null,null,null,"Mzdy:",null,{"$f":"'F - Celkové náklady'!H14","v":0},null,0]
[null,null,null,"Odměny:",null,{"$f":"'F - Celkové náklady'!H15","v":0},null,0]
[null,null,null,"OON:",null,{"$f":"'F - Celkové náklady'!H16","v":0},null,0]
[null,null,null,"Sociální a zdravotní pojištění:",null,{"$f":"'F - Celkové náklady'!H17","v":0},{"$f":"SUM(H66:H67)","v":0},0]
[]
[]
[]
[]
[null,"Věcné náklady (Kč):",null,null,null,{"$f":"SUM(F75:F78,F80:F82,F86)","v":0},null,{"$f":"SUM(H75:H78,H80:H82,H86)","v":0}]
[null,null,"Spotřeba materiálu:",null,null,{"$f":"'F - Celkové náklady'!H21","v":0},null,0]
[null,null,"Opravy a udržování:",null,null,{"$f":"'F - Celkové náklady'!H22","v":0},null,0]
[null,null,"Náklady na cestovné:",null,null,{"$f":"'F - Celkové náklady'!H23","v":0},null,0]
[null,null,"Ostatní služby:",null,null,{"$f":"'F - Celkové náklady'!H24","v":0},null,0]
[null,null,"Jiné ostatní (nemateriální) náklady (např. vložné):",null,null,null,{"$f":"SUM(H89,H56,H75,H76,H77,H78,H80,H82,H86)","v":0}]
[null,null,null,"Stipendia:",null,{"$f":"'F - Celkové náklady'!H26","v":0},null,0]
[null,null,null,"Doplňkové (režijní) náklady:",null,{"$f":"'F - Celkové náklady'!H27","v":0},null,0]
[null,null,null,"Další (např. vložné):",null,{"$f":"'F - Celkové náklady'!H28","v":0},null,0]
[]
[null,null,null,null,"(Nákl. Koef.:",0.26,")"]
[]
[null,null,"Poskytnuté členské příspěvky:",null,null,{"$f":"'F - Celkové náklady'!H29","v":0},null,0]
[]
[]
[null,"Investiční náklady (Kč):",null,null,null,{"$f":"SUM(F90:F91)","v":0},null,{"$f":"SUM(H90:H91)","v":0}]
[null,null,"Hmotný majetek:",null,null,{"$f":"'F - Celkové náklady'!H33","v":0},null,0]
[null,null,"Nehmotný majetek:",null,null,{"$f":"'F - Celkové náklady'!H34","v":0},null,0]
[]
[]
[null,"Celkové náklady projektu (Kč):",null,null,null,{"$f":"SUM(F56,F74,F89)","v":0},null,{"$f":"SUM(H56,H74,H89)","v":0}]
[]
[]
[]
[]
[]
[null,"Plánované osobní náklady (včetně stipendií):",null,null,null,null,null,{"$f":"H56+H80","v":0}]
[null,null,"z toho osobní náklady na studenty (včetně stipendií):",null,null,null,{"$f":"IF(EXACT(H100,0),\"\",H101/H100)","v":""},{"$f":"SUM(H58:H61,H80)","v":0}]
[]
[]
[]
[null,"Kvalitativní hodnocení:"]
[]
[null,null,"Členové řešitelského týmu jsou způsobilí a kvalifikovaní k řešení projektu:"]
[]
[null,null,"Navrhovaný projekt je aktuální a jeho řešení přispěje k poznání v oboru:"]
[]
[null,null,"Projekt má jasně vymezené kontrolovatelné cíle, koncepci a výstupy:"]
[]
[null,null,"Projekt má jasně definovaný časový plán řešení s kontrolovatelnými milníky:"]
[]
[null,null,"Finanční požadavky projektu jsou přiměřené:"]
[]
[]
[null,"Kvantitativní hodnocení:"]
[]
[null,null,"Odborná úroveň projektu:"]
[]
[null,null,"Kvalita očekávaných výstupů projektu:"]
[]
[null,null,"Společenská relevance vědeckého problému definovaného v projektu:"]
[]
[null,null,"Ekonomický dopad úspěšného řešení problému definovaného v projektu:"]
[]
[]
[null,"Celkové hodnocení:"]
[]
[]
[]
[null,"Vyjádření předsedy SGS komise fakulty:"]
[]
[]
[null,null,"Datum:",null,null,"Podpis:"]
[]
[]
[]
[null,"Vyjádření předsedy SGS komise TUL:"]
[]
[]
[null,null,"Datum:",null,null,"Podpis:"]

{"sheet":"Values","index":7,"n_rows":135,"n_cols":8,"rows_kept":135,"cut":false,"hidden":true,"merged":[]}
[]
["Typ projektu:"]
[]
["Nový"]
["Pokračující druhým rokem"]
["Pokračující třetím rokem"]
[]
["Datum zahájení:"]
[]
["01.02.2017"]
["01.02.2018"]
["01.02.2019"]
[]
["Datum konce:"]
[]
["2019-12-31"]
["2020-12-31"]
["2021-12-31"]
[]
["Fakulta:"]
[]
["Fakulta strojní"]
["Fakulta textilní"]
["Fakulta přírodovědně-humanitní a pedagogická"]
["Ekonomická fakulta"]
["Fakulta umění a architektury"]
["Fakulta mechatroniky, informatiky a meziob. stud."]
["Fakulta zdravotnických studií"]
[]
["Vztah k TUL:"]
[]
["Student"]
["Zaměstnanec"]
[]
[]
["Fakulta (zkratka):"]
[]
["FS"]
["FT"]
["FP"]
["EF"]
["FUA"]
["FM"]
["FZS"]
[]
["Role:"]
[]
["Student"]
["Akademik"]
["Školitel"]
[]
["Druh výsledku RIV:"]
[]
["J - Článek v odborném periodiku"]
["B - Odborná kniha"]
["C - Kapitola resp. kapitoly v odborné knize"]
["D - Článek ve sborníku"]
["V - Výzkumná zpráva obsahující utajované informace"]
["P - Patent"]
["S - Prototyp, uplatněná metodika"]
["Z - Poloprovoz, ověřená technologie, odrůda, plemeno"]
["A - Audiovizuální tvorba"]
["O - Ostatní výsledky"]
["F - Výsledky s právní ochranou (užitný vzor, průmyslový vzor)"]
["R - Software"]
["N -  Certifikované metodiky, léčebné postupy, památkové postupy, specializované mapy s odborným obsahem"]
["G - Technicky realizované výsledky (prototyp, funkční vzorek)"]
["W - Uspořádání workshopu"]
["Dp - Diplomová práce"]
["Dis - Disertační práce"]
[]
["Kvalitativní hodnocení:"]
[]
["Ano"]
["Ne"]
[]
["Kvantitativní hodnocení:"]
[]
["Excelentní"]
["Velmi dobrá"]
["Průměrná"]
["Dostatečná"]
["Slabá"]
[]
["Celkové hodnocení:"]
[]
["Schváleno k financování"]
["Schváleno k financování s krácením"]
["Neschváleno k financování"]
[]
["Chybové hlášky:"]
[]
["Je nutné zadat parametr \"Role\" u všech členů řešitelského týmu!"]
["Počet studentů musí být alespoň roven počtu ostatních členů řešitelského týmu!"]
["Podíl osobních nákladů studentů (včetně stipendií) na celkových osobních nákladech (včetně stipendií) musí být vyšší než 60%"]
["Zákonné pojištění neodpovídá zadaným osobním nákladům."]
["Doplňkové náklady neodpovídají zadaným nerežijním nákladům."]
["Formulář detekoval, že některé listy byly odemčeny. Zamknutí listů je zásadní pro udržení konzistence vnitřních dat formuláře a pro jeho správné strojové zpracování. Pozlední změna bude vrácena, bude proveden záznam o odemčení a formulář bude znovu uzamčen. "]
[]
[]
[]
[]
[]
[]
[]
[]
[]
[]
[]
[]
[]
["Dosažené vysokoškolské vzdělání:"]
[]
["Bc. nebo ekvivalent"]
["Ing., Mgr., nebo ekvivalent"]
["Ph.D."]
[]
["Katedry:"]
[null,"FS","FT","FP","EF","FUA","FM","FZS"]
[]
[null,"KMP ","KTT","KFL","KPE","KVU","ITE","UON"]
[null,"KSP","KMI","KPP","KIN","KPS","MTI ","UKB"]
[null,"KMT","KHT","KMD","KSY","KNK","NTI"]
[null,"KEZ","KOD","KSS","KFU","KUR","CxI"]
[null,"KST","KNT","KCH","KMG","KAR"]
[null,"KOM","KDE","KFY","KCJ","KDA"]
[null,"KVM",null,"KAP","KEK","KED"]
[null,"KSR",null,"KGE"]
[null,"KTS",null,"KPV"]
[null,"KSA",null,"KRO"]
[null,null,null,"KHI"]
[null,null,null,"KAJ"]
[null,null,null,"KTV"]
[null,null,null,"KNJ"]
[null,null,null,"KCL"]

{"sheet":"Translations","index":8,"n_rows":301,"n_cols":6,"rows_kept":301,"cut":false,"hidden":true,"merged":[]}
[1]
[]
[]
[]
[1,0,0,1,"A - Základní údaje","A - Basic information"]
[1,1,7,1,"Část A - Základní údaje","Part A - Basic information"]
[1,4,2,1,"Přihláška projektu SGS na rok 2019","SGS Project application for the year 2019"]
[1,7,2,1,"Jazyk přihlášky:","Language:"]
[1,10,2,1,"Název projektu česky:","Project title in Czech:"]
[1,12,2,1,"Název projektu anglicky:","Project title in English:"]
[1,14,2,1,"Stav projektu:","Project status:"]
[1,16,2,1,"Datum zahájení:","Start Date:"]
[1,18,2,1,"Datum konce:","End date:"]
[1,20,2,1,"Číslo projektu (u pokračujících):","Project number (if available):"]
[1,23,2,1,"Řešitel projektu:","Principal investigator:"]
[1,25,3,1,"Fakulta:","Faculty:"]
[1,27,3,1,"Katedra:","Department:"]
[1,29,3,1,"Vztah k TUL:","Relationship with TUL:"]
[1,31,3,1,"Datum narození:","Birthdate:"]
[1,33,3,1,"Dosažené vysokoškolské vzdělání:","Achieved university grade:"]
[1,35,3,1,"Datum vystavení diplomu:","Date of issue of the diploma:"]
[1,38,2,1,"Anotace projektu česky (maximálně 300 znaků):","Annotation in Czech (no more than 300 characters):"]
[1,41,2,1,"Anotace projektu anglicky  (maximálně 300 znaků):","Annotation in English (no more than 300 characters):"]
[1,45,2,1,"Příkazce projektu:","Budget transactor:"]
[1,47,2,1,"Správce projektu:","Budget administrator:"]
[1,50,2,1,"Členové řešitelského týmu:","Research team members:"]
[1,51,3,1,"Jméno a příjmení:","Name and Surname:"]
[1,51,5,1,"Fakulta:","Faculty:"]
[1,51,6,1,"Katedra:","Department:"]
[1,51,7,1,"Role:","Role:"]
[1,157,2,1,"Počet členů řešitelského týmu:","Number of the research team members:"]
[1,158,3,1,"Studenti:","Students:"]
[1,159,3,1,"Ostatní členové:","Other members:"]
[1,0,2,1,"Přidat člena týmu","Add a team member"]
[1,0,3,1,"Smazat prázdné řádky","Clear empty lines"]
[1,0,4,1,"Switch to English","Přepnout do češtiny"]
[2,0,0,1,"B - Návrh projektu","B - Project proposal"]
[2,1,7,1,"Část B - Návrh projektu","Part B - Project proposal"]
[2,4,2,1,"Přihláška projektu SGS na rok 2019","SGS Project application for the year 2019"]
[2,7,2,1,"Motivace pro řešení projektu:","Motivation for project solution:"]
[2,10,2,1,"Současný stav poznání nebo úroveň technologie:","Current state of knowledge or technology level:"]
[2,13,2,1,"Cíle a výsledky projektu:","Project objectives and results:"]
[2,16,2,1,"Použité metody a metodologie:","Methods and methodology used:"]
[2,19,2,1,"Časový plán (harmonogram) řešení projektu:","Schedule of the project solution:"]
[2,22,2,1,"Společenský a ekonomický dopad projektu nebo přínos k poznání:","Social and economic impact of the project or contribution to knowledge:"]
[2,25,2,1,"Popis pracovních aktivit členů řešitelského týmu:","Description of the work activities of the team members:"]
[2,29,2,1,"Plánované výstupy projektu vstupující do RIV:","Planned outputs of the project entering the RIV:"]
[2,30,3,1,"Druh výsledku:","Result type:"]
[2,30,7,1,"Počet:","Number:"]
[2,0,2,1,"Přidat druh výsledku","Add a type of result"]
[2,0,3,1,"Smazat prázdné řádky","Clear empty lines"]
[3,0,0,1,"C - Osobní náklady","C - Staff costs"]
[3,1,8,1,"Část C - Osobní náklady","Part C - Staff costs"]
[3,4,2,1,"Přihláška projektu SGS na rok 2019","SGS Project application for the year 2019"]
[3,7,2,1,"Osobní náklady (Kč):","Personal expenses (CZK):"]
[3,8,3,1,"Člen týmu:","Team member:"]
[3,8,4,1,"Role:","Role:"]
[3,8,5,1,"Mzda:","Wages:"]
[3,8,6,1,"Odměna:","Reward:"]
[3,8,7,1,"DPP/DPČ:","DPP / DPČ:"]
[3,8,8,1,"Stipendium:","Scholarship:"]
[3,8,9,0,"Základ OON:","Základ OON:"]
[3,113,2,1,"Zdravotní a sociální pojištění (Kč):","Health and social insurance (CZK):"]
[3,115,3,1,"Studenti:","Students:"]
[3,117,3,1,"Zaměstnanci:","Employees:"]
[3,120,2,1,"Podíl osobních nákladů:","Share of personal expenses:"]
[3,122,3,1,"Studenti:","Students:"]
[3,124,3,1,"Zaměstnanci:","Employees:"]
[3,0,2,1,"Spočítat zákonné pojištění - studenti","Calculate the insurance - Students"]
[3,0,3,1,"Spočítat zákonné pojištění - zaměstnanci","Calculate the insurance - Employees"]
[4,0,0,1,"D - Věcné náklady","D - Material costs"]
[4,1,7,1,"Část D - Věcné náklady","Part D - Material costs"]
[4,4,2,1,"Přihláška projektu SGS na rok 2019","SGS Project application for the year 2019"]
[4,7,2,1,"Spotřeba materiálu (Kč):","Materials (CZK):"]
[4,9,3,1,"Položka:","Item:"]
[4,9,7,1,"Částka:","Amount:"]
[4,44,2,1,"Opravy a udržování (Kč):","Repairs and maintenance (CZK):"]
[4,46,3,1,"Položka:","Item:"]
[4,46,7,1,"Částka:","Amount:"]
[4,71,2,1,"Náklady na cestovné (Kč):","Travel costs (CZK):"]
[4,73,3,1,"Položka:","Item:"]
[4,73,7,1,"Částka:","Amount:"]
[4,98,2,1,"Ostatní služby (Kč):","Other services (CZK):"]
[4,100,3,1,"Položka:","Item:"]
[4,100,7,1,"Částka:","Amount:"]
[4,125,2,1,"Jiné ostatní (nemateriální) náklady (např. vložné) (Kč):","Other (non-material) costs (eg registration fees) (CZK):"]
[4,127,3,1,"Položka:","Item:"]
[4,127,7,1,"Částka:","Amount:"]
[4,128,3,1,"Stipendia","Scholarships"]
[4,129,3,1,"Doplňkové (režijní) náklady","Supplementary (overhead) costs"]
[4,131,5,1,"(Nákladový koeficient:","(Cost coef.:"]
[4,131,7,0,")",")"]
[4,159,2,1,"Poskytnuté členské příspěvky (Kč):","Membership contributions (CZK):"]
[4,161,3,1,"Položka:","Item:"]
[4,161,7,1,"Částka:","Amount:"]
[4,187,2,1,"Stručné zdůvodnění pořízení položek věcných nákladů:","Brief comments on the acquisition of items of material costs:"]
[4,0,2,1,"Přidat položku","Add item"]
[4,0,3,1,"Smazat prázdné řádky","Clear empty lines"]
[4,0,4,1,"Přidat položku","Add item"]
[4,0,5,1,"Smazat prázdné řádky","Clear empty lines"]
[4,0,6,1,"Přidat položku","Add item"]
[4,0,7,1,"Smazat prázdné řádky","Clear empty lines"]
[4,0,8,1,"Přidat položku","Add item"]
[4,0,9,1,"Smazat prázdné řádky","Clear empty lines"]
[4,0,10,1,"Přidat položku","Add item"]
[4,0,11,1,"Smazat prázdné řádky","Clear empty lines"]
[4,0,12,1,"Přidat položku","Add item"]
[4,0,13,1,"Smazat prázdné řádky","Clear empty lines"]
[4,0,14,1,"Přepočítat doplňkové náklady","Recalculate overhead costs"]
[5,0,0,1,"E - Investiční náklady","E - Investment costs"]
[5,1,7,1,"Část E - Investiční náklady","Part E - Investment costs"]
[5,4,2,1,"Přihláška projektu SGS na rok 2019","SGS Project application for the year 2019"]
[5,7,2,1,"Hmotný majetek (Kč):","Tangible property (CZK:"]
[5,9,3,1,"Položka:","Item:"]
[5,9,7,1,"Částka:","Amount:"]
[5,34,2,1,"Nehmotný majetek (Kč):","Intangible assets (CZK):"]
[5,36,3,1,"Položka:","Item:"]
[5,36,7,1,"Částka:","Amount:"]
[5,62,2,1,"Stručné zdůvodnění pořízení položek investičních nákladů:","Brief comments for the acquisition of investment cost items:"]
[5,0,2,1,"Přidat položku","Add item"]
[5,0,3,1,"Smazat prázdné řádky","Clear empty lines"]
[5,0,4,1,"Přidat položku","Add item"]
[5,0,5,1,"Smazat prázdné řádky","Clear empty lines"]
[6,0,0,1,"F - Celkové náklady","F - Total costs"]
[6,1,8,1,"Část F - Celkové náklady","Part F - Total costs"]
[6,4,2,1,"Přihláška projektu SGS na rok 2019","SGS Project application for the year 2019"]
[6,7,2,1,"Osobní náklady (Kč):","Personal expenses (CZK):"]
[6,8,3,1,"Studenti:","Students:"]
[6,9,4,1,"Mzdy:","Wages:"]
[6,10,4,1,"Mimořádné odměny:","Extraordinary rewards:"]
[6,11,4,1,"DPP/DPČ:","DPP / DPČ:"]
[6,12,4,1,"Sociální a zdravotní pojištění:","Social and health insurance:"]
[6,13,3,1,"Zaměstnanci","Employees"]
[6,14,4,1,"Mzdy:","Wages:"]
[6,15,4,1,"Mimořádné odměny:","Extraordinary rewards:"]
[6,16,4,1,"DPP/DPČ:","DPP / DPČ:"]
[6,17,4,1,"Sociální a zdravotní pojištění:","Social and health insurance:"]
[6,20,2,1,"Věcné náklady (Kč):","Material costs (CZK):"]
[6,21,3,1,"Spotřeba materiálu:","Material consumption:"]
[6,22,3,1,"Opravy a udržování:","Repairs and maintenance:"]
[6,23,3,1,"Náklady na cestovné:","Travel costs:"]
[6,24,3,1,"Ostatní služby:","Other services:"]
[6,25,3,1,"Jiné ostatní (nemateriální) náklady (např. vložné):","Other (non-material) costs (eg registration fees):"]
[6,26,4,1,"Stipendia:","Scholarships:"]
[6,27,4,1,"Doplňkové (režijní) náklady:","Supplementary (overhead) costs:"]
[6,28,4,1,"Další (např. vložné):","Other (eg registration fees):"]
[6,29,3,1,"Poskytnuté členské příspěvky:","Allowed membership contributions:"]
[6,32,2,1,"Investiční náklady (Kč):","Investment costs (CZK):"]
[6,33,3,1,"Hmotný majetek:","Tangible property:"]
[6,34,3,1,"Nehmotný majetek:","Intangible assets:"]
[6,37,2,1,"Celkové náklady projektu (Kč):","Total project cost (CZK):"]
[6,0,2,1,"Přepočítat doplňkové náklady","Recalculate additional costs"]
[7,0,0,1,"H - Hodnocení","H - Rating"]
[7,1,8,1,"Část H - Souhrnné údaje a hodnocení","Part H - Summary data and evaluation"]
[7,4,2,1,"Přihláška projektu SGS na rok 2019","SGS Project application for the year 2019"]
[7,7,2,1,"Jazyk přihlášky:","Application language:"]
[7,10,2,1,"Název projektu česky:","Project title in Czech:"]
[7,12,2,1,"Název projektu anglicky:","Project title in English:"]
[7,14,2,1,"Typ projektu:","Project status:"]
[7,16,2,1,"Interní číslo projektu:","Internal project number:"]
[7,18,2,1,"Datum zahájení:","Start Date:"]
[7,20,2,1,"Datum konce:","End date:"]
[7,24,2,1,"Řešitel projektu:","Project leader:"]
[7,27,2,1,"Počet členů řešitelského týmu:","Number of team members:"]
[7,28,3,1,"z toho studentů:","of students:"]
[7,29,3,1,"a školitelů:","and advisors:"]
[7,33,2,1,"Plánované výstupy projektu vstupující do RIV:","Planned outputs of the project entering the RIV:"]
[7,34,3,1,"Druh výsledku:","Result type:"]
[7,34,8,1,"Počet:","Number:"]
[7,53,2,1,"Plánované náklady projektu:","Planned project costs:"]
[7,53,6,1,"Požadované:","Requested:"]
[7,53,8,1,"Upravené:","Modified:"]
[7,56,2,1,"Osobní náklady (Kč):","Personal expenses (CZK):"]
[7,57,3,1,"Studenti","Students"]
[7,58,4,1,"Mzdy:","Wages:"]
[7,59,4,1,"Odměny:","Rewards:"]
[7,60,4,1,"OON:","OON:"]
[7,61,4,1,"Sociální a zdravotní pojištění:","Social and health insurance:"]
[7,65,3,1,"Zaměstnanci:","Employees:"]
[7,66,4,1,"Mzdy:","Wages:"]
[7,67,4,1,"Odměny:","Rewards:"]
[7,68,4,1,"OON:","OON:"]
[7,69,4,1,"Sociální a zdravotní pojištění:","Social and health insurance:"]
[7,74,2,1,"Věcné náklady (Kč):","Material costs (CZK):"]
[7,75,3,1,"Spotřeba materiálu:","Material consumption:"]
[7,76,3,1,"Opravy a udržování:","Repairs and maintenance:"]
[7,77,3,1,"Náklady na cestovné:","Travel costs:"]
[7,78,3,1,"Ostatní služby:","Other services:"]
[7,79,3,1,"Jiné ostatní (nemateriální) náklady (např. vložné):","Other (non-material) costs (eg registration fees):"]
[7,80,4,1,"Stipendia:","Scholarships:"]
[7,81,4,1,"Doplňkové (režijní) náklady:","Supplementary (overhead) costs:"]
[7,82,4,1,"Další (např. vložné):","Other (eg registration fees):"]
[7,84,5,1,"(Nákl. Koef.:","(Cost coef.:"]
[7,84,7,0,")",")"]
[7,86,3,1,"Poskytnuté členské příspěvky:","Allowed membership contributions:"]
[7,89,2,1,"Investiční náklady (Kč):","Investment costs (CZK):"]
[7,90,3,1,"Hmotný majetek:","Tangible property:"]
[7,91,3,1,"Nehmotný majetek:","Intangible assets:"]
[7,94,2,1,"Celkové náklady projektu (Kč):","Total project cost (CZK):"]
[7,100,2,1,"Plánované osobní náklady (včetně stipendií):","Planned personal costs (including scholarships):"]
[7,101,3,1,"z toho osobní náklady na studenty (včetně stipendií):","of which personal costs for students (including scholarships):"]
[7,105,2,1,"Kvalitativní hodnocení:","Qualitative assessment:"]
[7,107,3,1,"Členové řešitelského týmu jsou způsobilí a kvalifikovaní k řešení projektu:","The team members are qualified and qualified to solve the project:"]
[7,109,3,1,"Navrhovaný projekt je aktuální a jeho řešení přispěje k poznání v oboru:","The project is relevant and it will contribute to the knowledge in the field:"]
[7,111,3,1,"Projekt má jasně vymezené kontrolovatelné cíle, koncepci a výstupy:","The project has clearly defined controllable goals, concepts and outputs:"]
[7,113,3,1,"Projekt má jasně definovaný časový plán řešení s kontrolovatelnými milníky:","The project has a clearly defined timeline with controllable milestones:"]
[7,115,3,1,"Finanční požadavky projektu jsou přiměřené:","The financial requirements of the project are reasonable:"]
[7,118,2,1,"Kvantitativní hodnocení:","Quantitative assessment:"]
[7,120,3,1,"Odborná úroveň projektu:","Expert level of the project:"]
[7,122,3,1,"Kvalita očekávaných výstupů projektu:","Quality of Expected Project Outputs:"]
[7,124,3,1,"Společenská relevance vědeckého problému definovaného v projektu:","Social relevance of the scientific problem defined in the project:"]
[7,126,3,1,"Ekonomický dopad úspěšného řešení problému definovaného v projektu:","The economic impact of a successful solution of the project:"]
[7,129,2,1,"Celkové hodnocení:","Overall rating:"]
[7,133,2,1,"Vyjádření předsedy SGS komise fakulty:","Statement by SGS Chairman of the faculty commission:"]
[7,136,3,1,"Datum:","Date:"]
[7,136,6,1,"Podpis:","Signature:"]
[7,140,2,1,"Vyjádření předsedy SGS komise TUL:","Statement by SGS Chairman TUL:"]
[7,143,3,1,"Datum:","Date:"]
[7,143,6,1,"Podpis:","Signature:"]
[7,0,2,1,"Kopírovat požadované finance do upravených","Copy the requested costs into the modified costs"]
[7,0,3,1,"Aktualizovat upravené odvody studentů","Calculate the modified insurance - Student"]
[7,0,4,1,"Vypočítat upravené odvody zaměstnanců","Calculate the modified insurance - Employees"]
[7,0,5,1,"Vypočítat upravené režie","Calculate the modified overhead costs"]
[8,0,0,1,"Values","Values"]
[8,2,1,1,"Typ projektu:","Project Status:"]
[8,4,1,1,"Nový","New"]
[8,5,1,1,"Pokračující druhým rokem","Continuing for the second year"]
[8,6,1,1,"Pokračující třetím rokem","Continuing for the third year"]
[8,8,1,1,"Datum zahájení:","Start Date:"]
[8,10,1,0,"01.02.2017","2017-02-01"]
[8,11,1,0,"01.02.2018","2018-02-01"]
[8,12,1,0,"01.02.2019","2019-02-01"]
[8,14,1,1,"Datum konce:","End date:"]
[8,16,1,0,"31.11.2019","31.11.2019"]
[8,17,1,0,"31.11.2020","31.11.2020"]
[8,18,1,0,"31.11.2021","31.11.2021"]
[8,20,1,1,"Fakulta:","Faculty:"]
[8,22,1,1,"Fakulta strojní","Faculty of Mechanical Engineering"]
[8,23,1,1,"Fakulta textilní","Faculty of Textile Engineering"]
[8,24,1,1,"Fakulta přírodovědně-humanitní a pedagogická","Faculty of Sciences, Humanities and Pedagogy"]
[8,25,1,1,"Ekonomická fakulta","Faculty of Economics"]
[8,26,1,1,"Fakulta umění a architektury","Faculty of Arts and Architecture"]
[8,27,1,1,"Fakulta mechatroniky, informatiky a meziob. stud.","Faculty of Mechatronics, Informatics and Interdisciplinary studies"]
[8,28,1,1,"Fakulta zdravotnických studií","Faculty of Health Studies"]
[8,30,1,1,"Vztah k TUL:","Relationship to TUL:"]
[8,32,1,1,"Student","Student"]
[8,33,1,1,"Zaměstnanec","Employee"]
[8,34,1,0,"Zaměstnanec","Employee"]
[8,36,1,1,"Fakulta (zkratka):","Faculty (abbreviated):"]
[8,38,1,0,"FS","FS"]
[8,39,1,0,"FT","FT"]
[8,40,1,0,"FP","FP"]
[8,41,1,0,"EF","EF"]
[8,42,1,0,"FUA","FUA"]
[8,43,1,0,"FM","FM"]
[8,44,1,0,"FZS","FZS"]
[8,46,1,1,"Role:","Role:"]
[8,48,1,1,"Student","Student"]
[8,49,1,1,"Akademik","Academician"]
[8,50,1,1,"Školitel","Supervisor"]
[8,52,1,1,"Druh výsledku RIV:","Result type of the  RIV:"]
[8,54,1,1,"J - Článek v odborném periodiku","J - Article in a research journal"]
[8,55,1,1,"B - Odborná kniha","B - Monograph"]
[8,56,1,1,"C - Kapitola resp. kapitoly v odborné knize","C - Chapter or Section. chapters in a professional book"]
[8,57,1,1,"D - Článek ve sborníku","D - Article in proceedings"]
[8,58,1,1,"V - Výzkumná zpráva obsahující utajované informace","V - Research report containing classified information"]
[8,59,1,1,"P - Patent","P - Patent"]
[8,60,1,1,"S - Prototyp, uplatněná metodika","S - Prototype, applied methodology"]
[8,61,1,1,"Z - Poloprovoz, ověřená technologie, odrůda, plemeno","Z - Semi-operation, proven technology, variety, breed"]
[8,62,1,1,"A - Audiovizuální tvorba","A - Audiovisual creation"]
[8,63,1,1,"O - Ostatní výsledky","O - Other Results"]
[8,64,1,1,"F - Výsledky s právní ochranou (užitný vzor, průmyslový vzor)","F - Results with legal protection (utility model, industrial design)"]
[8,65,1,1,"R - Software","R - Software"]
[8,66,1,1,"N -  Certifikované metodiky, léčebné postupy, památkové postupy, specializované mapy s odborným obsahem","N - Certified methodologies, curative procedures, heritage procedures, specialized maps with professional content"]
[8,67,1,1,"G - Technicky realizované výsledky (prototyp, funkční vzorek)","G - Technically realized results (prototype, functional sample)"]
[8,68,1,1,"W - Uspořádání workshopu","W - Workshop arrangement"]
[8,69,1,1,"Dp - Diplomová práce","Dp - Diploma thesis"]
[8,70,1,1,"Dis - Disertační práce","Dis - Dissertation"]
[8,72,1,1,"Kvalitativní hodnocení:","Qualitative assessment:"]
[8,74,1,1,"Ano","Yes"]
[8,75,1,1,"Ne","No"]
[8,77,1,1,"Kvantitativní hodnocení:","Quantitative assessment:"]
[8,79,1,1,"Excelentní","Excellent"]
[8,80,1,1,"Velmi dobrá","Very good"]
[8,81,1,1,"Průměrná","Average"]
[8,82,1,1,"Dostatečná","Sufficient"]
[8,83,1,1,"Slabá","Weak"]
[8,85,1,1,"Celkové hodnocení:","Overall rating:"]
[8,87,1,1,"Schváleno k financování","Approved for funding"]
[8,88,1,1,"Schváleno k financování s krácením","Approved for funding with a cut"]
[8,89,1,1,"Neschváleno k financování","Not approved for funding"]
[8,93,1,1,"Je nutné zadat parametr \"Role\" u všech členů řešitelského týmu!","It is necessary to specify the parameter \"Role\" of all research team members"]
[8,94,1,1,"Počet studentů musí být alespoň roven počtu ostatních členů řešitelského týmu!","The number of students must be greater or equal to the number of other team members "]
[8,95,1,1,"Podíl osobních nákladů studentů (včetně stipendií) na celkových osobních nákladech (včetně stipendií) musí být vyšší než 60%","Ratio of student personal costs (including scholarship) over the total personal costs (including scholarship) must be greater than 60%"]
[8,96,1,1,"Zákonné pojištění neodpovídá zadaným osobním nákladům.","Health and social insurance does not correspond to the entered personal costs."]
[8,97,1,1,"Doplňkové náklady neodpovídají zadaným nerežijním nákladům.","Overhead costs do not correspond to the entered costs."]
[8,98,1,1,"Formulář detekoval, že některé listy byly odemčeny. Zamknutí listů je zásadní pro udržení konzistence vnitřních dat formuláře a pro jeho správné strojové zpracování. Pozlední změna bude vrácena, bude proveden záznam o odemčení a formulář bude znovu uzamčen. ","The form detected that some sheets were unlocked. Locking the sheets is essential to maintain the consistency of the internal data of the form and for its proper machine processing. The last change will be undone, an unlock record will be made, and the form will be locked again."]
[8,112,1,0,"Dosažené vysokoškolské vzdělání:"]
[8,114,1,1,"Bc. nebo ekvivalent","B.Sc. or equivalent"]
[8,115,1,1,"Ing., Mgr., nebo ekvivalent","M.Sc. or equivalent"]
[8,116,1,1,"Ph.D.","Ph.D."]